bitfinex-derivatives/quotes_ETHF0:USTF0_20250701
["timestamp","ask_amount","ask_price","bid_price","bid_amount"]
[1751396320856,2.0498,2412.0,2411.7,3.07327775]
[1751396321059,2.0498,2412.0,2411.5,3.07327775]
[1751396321357,2.0498,2412.0,2411.3,3.07327775]
[1751396321558,4.12231,2412.0,2411.3,3.07327775]
[1751396321754,3.07327775,2411.9,2411.3,3.07327775]
[1751396321968,0.8294,2410.9,2410.6,0.82946]
[1751396322170,1.3586,2411.8,2410.2,63.05518]
[1751396322469,1.3586,2411.4,2410.6,1.3372]
[1751396322669,3.4316,2411.4,2410.3,78.563]
[1751396322964,1.3586,2411.4,2410.4,1.4355]
[1751396323167,1.3586,2411.4,2410.1,0.27719747]
[1751396323168,5.91727988,2410.8,2410.1,0.27719747]
[1751396323364,5.91727988,2411.2,2410.2,1.4355]
[1751396323573,1.3723,2411.1,2410.4,2.07386]
[1751396323870,7.28957988,2411.1,2410.1,0.27719747]
[1751396324071,5.91727988,2410.6,2409.3,4.13464667]
[1751396324260,7.28957988,2410.5,2409.1,4.13464667]
[1751396324462,12.541,2410.4,2407.8,10.75008134]
[1751396324662,11.83455976,2408.1,2401.0,0.00630225]
[1751396324871,11.83455976,2406.1,2402.9,2.08032]
[1751396325067,11.83455976,2406.1,2401.0,0.00630225]
[1751396325068,2.07813,2405.5,2400.0,18.19244534]
[1751396325270,2.07875,2404.8,2401.3,4.145]
[1751396325471,4.15657,2405.3,2400.5,46.99033488]
[1751396325770,9.17511123,2403.3,2400.9,0.8328]
[1751396325968,103.947,2405.2,2400.6,1.4355]
[1751396325969,73.763,2405.2,2402.1,9.17511123]
[1751396326166,0.83162,2404.4,2402.2,1.3516]
[1751396326366,3.82785958,2406.0,2402.2,1.3516]
[1751396326367,15.52429493,2405.2,2402.7,0.83217]
[1751396326573,15.52429493,2405.2,2402.8,1.3516]
[1751396326774,0.83165,2404.3,2402.8,1.3516]
[1751396326975,0.83153,2404.7,2402.9,14.403]
[1751396327172,9.17511123,2405.1,2403.0,59.696]
[1751396327371,12.25602232,2405.5,2403.0,59.696]
[1751396327372,17.9754994,2405.5,2403.1,31.24]
[1751396327674,17.9754994,2405.5,2404.1,9.17511123]
[1751396327971,2.39184915,2405.8,2404.2,76.9166]
[1751396328165,16.146,2409.0,2405.6,9.17511123]
[1751396328364,16.3413631,2406.9,2406.1,9.17511123]
[1751396328566,19.60963572,2408.3,2406.8,9.17511123]
[1751396328767,1.66058798,2408.2,2405.8,16.163]
[1751396328971,1.4035,2408.2,2406.1,0.6981]
[1751396329166,19.60963572,2408.3,2407.5,9.17511123]
[1751396329372,21.01313572,2408.3,2406.9,9.17511123]
[1751396329569,19.60963572,2408.3,2407.3,9.17511123]
[1751396329766,18.59375572,2408.3,2406.1,4.41883004]
[1751396329967,18.59375572,2408.3,2407.5,0.83051]
[1751396330272,18.59375572,2408.3,2406.6,17.335]
[1751396330468,1.4035,2408.3,2406.7,2.07704]
[1751396330775,17.335,2409.0,2406.8,40.8]
[1751396331271,17.335,2409.0,2406.8,49.97511123]
[1751396331478,1.4035,2408.9,2406.8,56.47089127]
[1751396331676,1.4035,2408.9,2407.3,9.17511123]
[1751396331980,78.0465,2409.5,2407.4,2.1676]
[1751396332172,2.07352,2410.8,2407.4,2.1676]
[1751396332173,1.4408,2410.1,2408.2,9.17511123]
[1751396332372,1.4408,2410.1,2408.3,1.4417]
[1751396332578,1.4408,2410.1,2409.3,0.82989]
[1751396332877,1.4408,2410.1,2408.4,0.7259]
[1751396333076,9.17511123,2409.4,2408.3,5.86053004]
[1751396333278,1.4408,2409.3,2408.3,5.86053004]
[1751396333476,1.4408,2409.3,2408.6,0.83015]
[1751396333676,1.4408,2409.3,2408.4,0.83023]
[1751396334078,1.4408,2409.3,2408.4,5.24906004]
[1751396334276,1.4408,2409.3,2408.5,0.83019]
[1751396334569,1.4408,2409.3,2408.9,0.83004]
[1751396334770,17.609,2409.5,2408.4,0.26752233]
[1751396334972,17.609,2409.5,2409.2,0.82993]
[1751396335178,19.0677,2409.5,2408.4,0.26752233]
[1751396335380,19.0677,2409.5,2408.6,0.83015]
[1751396335579,19.0677,2409.5,2408.4,0.26752233]
[1751396335779,19.0677,2409.5,2408.4,1.09772233]
[1751396335980,0.82988,2409.4,2408.5,0.83018]
[1751396336379,0.82988,2409.4,2408.3,1.4417]
[1751396336380,1.4587,2409.3,2408.3,1.4417]
[1751396336579,22.87790834,2408.6,2408.5,0.83018]
[1751396336774,22.87790834,2408.6,2408.3,2.27194]
[1751396337178,22.87790834,2408.6,2408.3,1.4417]
[1751396337470,15.66266081,2408.5,2408.4,0.83023]
[1751396338282,15.66266081,2408.5,2408.4,41.63023]
[1751396338578,15.66266081,2408.5,2407.8,0.84154335]
[1751396338776,15.66266081,2408.5,2407.7,9.17511123]
[1751396338977,15.66266081,2408.5,2408.4,0.83023]
[1751396339482,2.07465,2409.5,2408.1,3.0]
[1751396339682,15.58284359,2408.2,2408.1,3.0]
[1751396339883,15.58284359,2408.2,2408.1,3.83033]
[1751396340380,15.58284359,2408.2,2408.1,0.83033]
[1751396340586,17.24478624,2408.2,2408.1,0.83033]
[1751396341275,17.24478624,2408.2,2407.7,40.8]
[1751396341475,1.66194265,2408.1,2408.0,0.83037]
[1751396342787,15.58284359,2409.3,2409.2,0.82995]
[1751396343472,15.58284359,2409.3,2409.1,7.51416264]
[1751396343679,15.58284359,2409.3,2409.2,0.82995]
[1751396343984,15.58284359,2409.3,2408.1,9.17511123]
[1751396343985,0.82995,2409.2,2408.1,9.17511123]
[1751396344181,20.58284359,2409.3,2408.4,3.51682]
[1751396344484,20.58284359,2409.3,2408.5,40.8]
[1751396344485,0.82996,2409.2,2408.5,40.8]
[1751396344680,5.0,2409.3,2408.6,0.83013]
[1751396344876,5.0,2409.3,2408.8,0.83008]
[1751396345082,0.83002,2409.1,2408.7,0.83011]
[1751396345281,0.83002,2409.1,2408.8,2.27139]
[1751396345786,0.82987,2409.5,2409.1,0.82996]
[1751396345981,0.82987,2409.5,2408.8,1.4413]
[1751396345982,5.0,2409.5,2409.0,0.83]
[1751396346182,0.82993,2409.3,2409.0,0.83]
[1751396346486,0.82993,2409.3,2409.1,1.4413]
[1751396347084,0.82995,2409.2,2409.1,1.4413]
[1751396347284,3.39956,2409.7,2409.1,1.4413]
[1751396347482,0.82991,2409.4,2409.1,2.27127]
[1751396347682,2.07429,2409.9,2409.2,1.66060341]
[1751396347886,0.82988,2409.4,2409.3,1.66060341]
[1751396348087,0.82987,2409.5,2409.3,1.66060341]
[1751396348381,0.82983,2409.6,2409.4,9.66084475]
[1751396348586,1.94173745,2410.2,2409.5,1.66060341]
[1751396348789,0.82964,2410.1,2410.0,4.01713319]
[1751396348985,0.82964,2410.1,2410.0,1.66060341]
[1751396349189,9.17511123,2410.7,2410.0,5.6777366]
[1751396349390,0.82957,2410.3,2410.2,4.01874069]
[1751396349693,10.00468123,2410.3,2410.2,1.66060341]
[1751396349985,2.0741,2410.2,2409.7,3.22036683]
[1751396350178,2.07411,2410.1,2409.6,5.62399594]
[1751396350384,2.07397,2410.3,2409.6,5.62399594]
[1751396350584,0.82961,2410.2,2410.1,4.02982364]
[1751396350781,0.82976,2409.8,2409.6,5.62399594]
[1751396350985,2.07412,2410.1,2409.3,8.70294134]
[1751396351185,0.82964,2410.1,2410.0,5.64125337]
[1751396351586,0.82968,2410.0,2409.9,5.64704548]
[1751396351885,0.82968,2410.0,2409.9,4.47271548]
[1751396352086,2.07441,2409.8,2409.1,1.3739]
[1751396352287,2.07449,2409.7,2409.2,0.82993]
[1751396352591,2.07449,2409.7,2409.1,1.3739]
[1751396352592,2.07414,2410.1,2409.1,1.3739]
[1751396352887,0.82972,2409.9,2409.6,0.8298]
[1751396353090,0.6849,2410.5,2409.4,17.609]
[1751396353391,0.82944,2410.7,2410.3,0.82955]
[1751396353586,0.82943,2410.8,2410.6,4.03849588]
[1751396353789,2.07317,2411.2,2410.5,0.82948]
[1751396353790,0.82944,2410.7,2410.5,0.82948]
[1751396353988,2.07329,2411.1,2410.6,0.82947]
[1751396354188,0.82937,2410.9,2410.8,4.03837119]
[1751396355193,0.82936,2411.0,2410.8,0.82938]
[1751396355487,2.07319,2411.2,2410.5,1.3329]
[1751396355685,0.8293,2411.1,2411.0,3.23043459]
[1751396356093,0.82929,2411.2,2411.1,0.82929]
[1751396356292,0.6849,2411.5,2411.1,4.05957198]
[1751396356590,0.82923,2411.3,2411.2,0.82925]
[1751396356785,0.82923,2411.3,2411.1,3.23029198]
[1751396356987,0.8292,2411.4,2411.2,3.23029198]
[1751396357183,2.07252,2412.0,2411.2,3.23029198]
[1751396357184,2.07237,2412.2,2411.2,5.30340198]
[1751396357388,0.82891,2412.3,2412.0,0.82896]
[1751396357588,0.6863,2413.4,2412.1,1.61303794]
[1751396357788,0.6863,2413.4,2411.9,2.42088727]
[1751396357789,0.82873,2412.8,2412.7,1.20968663]
[1751396357992,0.82873,2412.8,2412.0,19.67842]
[1751396357993,0.7184,2413.2,2412.6,1.20877089]
[1751396358190,0.82865,2413.0,2412.9,1.20942952]
[1751396358494,0.82865,2413.0,2412.8,3.23029198]
[1751396358693,0.82866,2413.0,2412.7,18.43072]
[1751396358993,0.7184,2413.2,2412.8,2.41647533]
[1751396358994,0.82868,2412.9,2412.8,2.41647533]
[1751396359182,11.96501123,2413.2,2412.5,2.41647533]
[1751396359385,0.82882,2412.5,2412.4,2.41647533]
[1751396359793,0.82882,2412.5,2412.3,0.82887]
[1751396359981,2.07162,2413.0,2412.3,0.82887]
[1751396360189,2.07162,2413.0,2412.7,2.41409425]
[1751396360392,0.82875,2412.7,2412.6,2.41409425]
[1751396360693,0.82883,2412.5,2412.3,17.602]
[1751396360896,0.82885,2412.4,2412.3,17.602]
[1751396361090,0.82887,2412.4,2412.2,4.05920198]
[1751396361291,2.07171,2412.9,2412.1,44.03029198]
[1751396361492,0.82882,2412.5,2412.4,2.40886056]
[1751396361689,0.82882,2412.5,2412.3,2.40886056]
[1751396361889,0.82882,2412.5,2412.3,3.23774056]
[1751396362094,2.07162,2413.0,2412.2,17.807]
[1751396362095,0.82881,2412.6,2412.4,4.06700572]
[1751396362291,0.82881,2412.6,2412.5,1.65814516]
[1751396362491,2.07154,2413.1,2412.5,1.65814516]
[1751396362696,2.07154,2413.1,2412.6,1.65805753]
[1751396362888,2.07154,2413.1,2412.7,1.65805753]
[1751396363091,2.07154,2413.1,2412.5,17.807]
[1751396363293,0.7184,2413.2,2412.6,1.65807484]
[1751396363491,0.82872,2412.8,2412.7,1.65807484]
[1751396363798,0.7184,2413.2,2412.7,1.65807484]
[1751396363993,0.82868,2412.9,2412.8,1.65807484]
[1751396364188,0.82867,2413.0,2412.8,1.65807484]
[1751396364393,0.82867,2413.0,2412.9,1.65807484]
[1751396364590,0.82875,2412.7,2412.6,17.803]
[1751396364793,0.7184,2413.2,2412.6,17.803]
[1751396365197,0.7184,2413.2,2413.1,0.82861]
[1751396365696,0.7184,2413.2,2412.6,19.87493]
[1751396366007,0.6863,2413.4,2413.0,0.82863]
[1751396366303,0.82861,2413.1,2412.9,0.82866]
[1751396366598,2.07152,2413.2,2412.1,40.8]
[1751396366801,0.82881,2412.6,2412.5,0.82882]
[1751396367295,11.93273123,2413.4,2412.3,2.07222]
[1751396367491,2.75762,2413.4,2412.4,2.07213]
[1751396367698,0.82871,2412.9,2412.5,1.3806]
[1751396367891,0.82871,2412.9,2412.7,0.82872]
[1751396368296,0.82867,2413.0,2412.8,0.82872]
[1751396368495,0.82868,2412.9,2412.8,0.82872]
[1751396368699,0.82872,2412.8,2412.7,0.82875]
[1751396369100,9.17511123,2413.8,2412.8,0.8287]
[1751396369101,2.07137,2413.3,2412.8,0.8287]
[1751396369302,0.82867,2413.0,2412.8,0.8287]
[1751396369599,2.07095,2413.8,2412.7,2.40886056]
[1751396369805,0.82868,2412.9,2412.8,3.23755056]
[1751396370001,9.17511123,2413.2,2412.4,20.20686056]
[1751396370206,0.8288,2412.6,2412.5,0.8288]
[1751396370404,0.82882,2412.5,2412.4,18.62683]
[1751396370703,0.8288,2412.6,2412.5,0.82881]
[1751396370902,2.07174,2412.9,2412.4,17.798]
[1751396371105,0.8288,2412.6,2412.5,0.8288]
[1751396371303,0.82882,2412.5,2412.4,17.798]
[1751396371599,0.82882,2412.5,2412.4,2.40886056]
[1751396371998,0.82885,2412.4,2412.3,2.40886056]
[1751396372202,0.82889,2412.3,2412.2,21.03578056]
[1751396372404,0.82889,2412.3,2412.2,18.62692]
[1751396373006,1.3952,2412.6,2412.5,0.82882]
[1751396373195,2.22398,2412.6,2412.5,3.26403861]
[1751396373399,0.82871,2412.9,2412.8,0.82869]
[1751396373801,2.22388,2413.0,2412.9,0.82868]
[1751396373996,0.8286,2413.2,2413.1,0.8286]
[1751396374197,1.53517,2413.3,2413.2,0.82858]
[1751396374706,0.82865,2413.0,2412.9,2.43746977]
[1751396374906,0.82865,2413.0,2412.9,0.82868]
[1751396375106,0.82869,2412.9,2412.8,3.26749705]
[1751396375305,0.82869,2412.9,2412.8,2.43879705]
[1751396375503,0.82868,2413.0,2412.8,2.43879705]
[1751396375800,0.82868,2412.9,2412.8,0.82869]
[1751396376107,0.82872,2412.8,2412.7,2.44191636]
[1751396376304,0.82872,2412.8,2412.7,0.82875]
[1751396376499,0.82872,2412.8,2412.7,2.40325945]
[1751396377402,0.82872,2412.8,2412.7,1.57450945]
[1751396377596,5.82872,2412.8,2412.7,1.57450945]
[1751396378007,7.17192,2412.8,2412.7,1.57450945]
[1751396378396,7.17192,2412.8,2412.7,4.02195395]
[1751396379106,7.17192,2412.8,2412.7,1.57450945]
[1751396379305,0.82875,2412.7,2412.6,2.45106873]
[1751396379503,0.82889,2412.3,2412.2,3.23029198]
[1751396379699,0.82884,2412.5,2412.4,0.82882]
[1751396379898,3.4151,2412.7,2412.2,3.27078598]
[1751396379899,5.48701,2412.7,2412.2,3.27078598]
[1751396380110,0.82896,2412.1,2412.0,17.797]
[1751396380305,0.82895,2412.2,2412.0,17.797]
[1751396380609,0.82895,2412.2,2412.1,0.82892]
[1751396380911,0.82899,2412.1,2412.0,0.82897]
[1751396381608,2.0724,2412.1,2411.3,2.07305]
[1751396381798,0.82917,2411.6,2411.5,0.82915]
[1751396382005,1.3504,2412.0,2411.4,19.86999]
[1751396382311,0.82909,2411.8,2411.7,0.82906]
[1751396382706,0.82912,2411.7,2411.6,0.8291]
[1751396383206,0.82916,2411.6,2411.5,0.82914]
[1751396383412,0.82912,2411.7,2411.6,0.82909]
[1751396383708,1.3504,2412.0,2411.4,21.30289]
[1751396383910,2.07233,2412.2,2411.6,2.07281]
[1751396383911,0.82897,2412.2,2411.6,2.07281]
[1751396384114,0.82899,2412.1,2412.0,0.82897]
[1751396384307,0.82899,2412.1,2411.8,2.07265]
[1751396384308,0.82892,2412.3,2412.2,0.8289]
[1751396384508,1.4204,2412.6,2412.3,0.82888]
[1751396384708,0.82894,2412.2,2412.1,0.82895]
[1751396384910,2.07205,2412.5,2411.9,1.4465]
[1751396385213,0.82894,2412.2,2412.1,0.82893]
[1751396385814,0.82895,2412.2,2412.1,0.82894]
[1751396386003,2.0719,2412.7,2411.9,3.51906]
[1751396386208,2.0719,2412.7,2412.3,0.82887]
[1751396386209,0.82889,2412.4,2412.3,0.82887]
[1751396386409,0.82884,2412.5,2412.4,0.82882]
[1751396386711,0.82892,2412.2,2412.1,1.4465]
[1751396386913,0.82899,2412.1,2412.0,0.82897]
[1751396387514,0.82902,2411.9,2411.8,0.82905]
[1751396387704,2.07224,2412.3,2411.8,4.13184445]
[1751396387904,0.82901,2412.0,2411.9,0.82899]
[1751396388612,0.82903,2411.9,2411.8,4.13182445]
[1751396388812,1.4049,2412.2,2411.8,3.30279445]
[1751396389011,0.829,2412.1,2412.0,0.82897]
[1751396389910,2.07231,2412.2,2411.6,3.30279445]
[1751396390118,0.82907,2411.9,2411.8,0.82903]
[1751396391214,0.82907,2411.9,2411.8,2.06553594]
[1751396391609,0.82907,2411.9,2411.8,1.23650594]
[1751396392114,0.82907,2411.9,2411.8,2.88745605]
[1751396392614,0.82907,2411.9,2411.8,2.06556594]
[1751396392811,0.82907,2411.9,2411.8,1.23650594]
[1751396393713,0.8293,2411.1,2411.0,3.30279445]
[1751396394016,6.74205708,2411.1,2410.5,20.95079445]
[1751396394215,1.392,2411.0,2410.6,0.82945]
[1751396394411,0.82944,2410.7,2410.6,0.82945]
[1751396395116,0.82947,2410.6,2410.5,17.648]
[1751396395514,0.82947,2410.6,2410.5,18.47751]
[1751396395716,0.82947,2410.6,2410.5,19.84611]
[1751396396212,0.82945,2410.7,2410.6,0.82943]
[1751396396713,0.82936,2411.0,2410.9,0.82937]
[1751396396918,0.82939,2410.9,2410.8,0.82937]
[1751396397414,0.82937,2410.9,2410.8,0.82937]
[1751396398214,2.07329,2411.1,2410.6,1.4399]
[1751396398518,0.82944,2410.7,2410.6,2.26936]
[1751396398717,0.82942,2410.8,2410.7,0.8294]
[1751396399120,0.82939,2410.9,2410.8,0.82938]
[1751396399923,2.07329,2411.1,2410.6,1.4399]
[1751396400217,0.82944,2410.7,2410.6,1.4399]
[1751396400417,0.82944,2410.7,2410.4,59.709]
[1751396400418,0.82951,2410.5,2410.4,59.709]
[1751396400625,0.82951,2410.5,2410.4,60.53854]
[1751396400917,0.82951,2410.5,2409.8,1.03379597]
[1751396400918,2.07386,2410.4,2409.8,1.03379597]
[1751396401119,9.46353553,2410.1,2409.0,3.30279445]
[1751396401318,9.46353553,2410.1,2409.1,3.30279445]
[1751396401319,2.07435,2409.9,2409.1,3.30279445]
[1751396401614,9.46353553,2409.5,2408.8,6.11324324]
[1751396401824,9.46353553,2409.5,2408.9,4.6909809]
[1751396402022,0.83002,2409.0,2408.9,1.4008]
[1751396402314,0.83003,2409.0,2408.8,4.11830369]
[1751396402517,3.45635,2409.4,2408.7,3.28823369]
[1751396402518,0.83009,2408.8,2408.7,3.28823369]
[1751396402715,2.07489,2409.2,2408.6,3.28823369]
[1751396402716,10.84513553,2408.9,2408.6,3.28823369]
[1751396403019,9.46353553,2409.4,2408.6,3.28823369]
[1751396403219,1.3816,2409.3,2408.5,5.36366369]
[1751396403416,9.46353553,2409.0,2408.4,3.28823369]
[1751396403612,0.83014,2408.7,2408.5,0.83018]
[1751396403816,1.3816,2408.9,2408.5,0.83017]
[1751396404021,2.07524,2408.8,2407.9,1.4299]
[1751396404316,1.3816,2408.7,2408.6,0.83016]
[1751396404517,0.83017,2408.6,2408.4,0.83021]
[1751396404725,9.46353553,2408.7,2407.9,1.4299]
[1751396405018,9.46353553,2408.3,2407.6,0.6935]
[1751396405219,1.4549,2408.2,2408.1,0.83033]
[1751396405418,1.4549,2408.2,2407.6,0.6935]
[1751396405619,1.4549,2408.2,2407.5,0.83054]
[1751396405819,9.46353553,2407.9,2407.1,3.28823369]
[1751396406018,0.6931,2408.1,2406.9,3.28823369]
[1751396406316,0.6931,2408.7,2407.2,9.46353553]
[1751396406519,11.79491678,2410.1,2408.4,2.07555]
[1751396406819,1.4549,2409.6,2408.6,2.0754]
[1751396407020,1.4549,2409.6,2408.7,2.07532]
[1751396407316,0.6931,2410.0,2409.7,0.82977]
[1751396407516,59.762,2410.9,2409.2,55.595]
[1751396407710,0.82957,2410.4,2409.3,2.0633]
[1751396407918,9.46353553,2410.5,2409.3,57.6853]
[1751396408221,0.82977,2409.8,2409.0,20.01499]
[1751396408421,1.3437,2409.7,2409.6,0.82982]
[1751396408617,1.3437,2409.7,2409.5,0.82984]
[1751396408920,10.80723553,2409.7,2408.7,18.599]
[1751396409222,11.52033553,2409.7,2408.5,59.762]
[1751396409425,0.83006,2408.9,2408.6,0.83014]
[1751396409621,2.07455,2409.6,2408.5,59.762]
[1751396409821,0.83011,2408.8,2408.5,59.762]
[1751396410020,0.83013,2408.7,2408.4,0.83021]
[1751396410223,0.83013,2408.7,2408.1,17.94]
[1751396410224,1.3437,2408.7,2408.5,0.83018]
[1751396410422,1.3437,2408.7,2408.6,0.83016]
[1751396411019,2.17383,2408.7,2408.5,0.83017]
[1751396411220,1.3437,2408.7,2408.5,0.83017]
[1751396411420,1.3437,2408.7,2408.6,0.83016]
[1751396411621,1.3437,2408.7,2408.5,0.83018]
[1751396411820,0.7225,2409.3,2408.4,2.07557]
[1751396412022,0.83,2409.1,2408.4,2.07557]
[1751396412219,0.83005,2409.0,2408.2,2.0757]
[1751396412521,10.79053553,2408.9,2407.6,2.07624]
[1751396412723,0.83026,2408.4,2407.6,17.943]
[1751396413024,0.83012,2408.8,2408.5,0.83017]
[1751396413224,0.83021,2408.5,2407.8,1.4088]
[1751396413425,0.718,2408.9,2407.8,1.4088]
[1751396413428,0.718,2408.9,2408.0,2.07593]
[1751396413627,0.83006,2408.9,2408.2,2.07575]
[1751396413824,0.8299,2409.4,2409.1,0.82999]
[1751396414023,2.17298,2409.5,2409.1,0.82997]
[1751396414224,1.3431,2409.5,2408.7,17.943]
[1751396414526,1.3431,2409.5,2409.1,0.82997]
[1751396414825,12.23542553,2410.3,2408.9,2.07515]
[1751396415025,0.82979,2409.7,2409.4,0.82987]
[1751396415523,1.3431,2409.9,2408.8,1.3176]
[1751396415721,1.3431,2409.9,2409.1,2.07498]
[1751396415921,0.82975,2409.8,2409.6,0.82981]
[1751396416122,1.3431,2409.9,2409.2,1.3176]
[1751396416420,2.17284,2409.9,2409.6,0.82979]
[1751396416619,1.3431,2409.9,2409.2,1.3176]
[1751396416820,0.82977,2409.8,2409.2,1.3176]
[1751396417028,0.6737,2410.2,2409.2,1.3176]
[1751396417235,0.82986,2409.5,2409.2,0.7268]
[1751396417422,0.82986,2409.5,2409.2,1.55673]
[1751396417728,0.6737,2410.2,2409.2,0.7268]
[1751396417923,0.82973,2409.9,2409.6,0.82979]
[1751396418125,0.8297,2410.0,2409.8,0.82974]
[1751396418326,2.23766,2410.1,2409.9,0.8297]
[1751396418621,1.408,2410.1,2409.3,1.4009]
[1751396419029,1.408,2410.1,2409.3,3.47566]
[1751396419222,1.408,2410.1,2409.5,2.0746]
[1751396419525,0.82969,2410.0,2409.8,0.82972]
[1751396419726,1.408,2410.1,2409.5,2.07463]
[1751396419922,0.82977,2409.8,2409.2,62.57763]
[1751396420126,1.408,2410.1,2409.3,1.4008]
[1751396420127,2.07423,2410.0,2409.3,1.4008]
[1751396420328,3.51704,2409.9,2409.2,60.5028]
[1751396420624,2.07438,2409.8,2409.3,0.82991]
[1751396420925,0.82985,2409.5,2409.4,0.82986]
[1751396421126,1.4427,2409.8,2409.2,60.5028]
[1751396421334,0.82985,2409.5,2409.3,0.82989]
[1751396421527,0.82986,2409.5,2409.3,0.82989]
[1751396421728,0.82969,2410.0,2409.3,2.07481]
[1751396421928,2.07389,2410.4,2409.2,60.5028]
[1751396421929,0.82964,2410.2,2410.0,0.82966]
[1751396422129,0.82965,2410.1,2409.6,2.07449]
[1751396422331,2.27226,2410.4,2410.2,0.82958]
[1751396422529,2.27226,2410.4,2409.8,2.07436]
[1751396422530,4.49552942,2410.9,2410.0,2.07417]
[1751396422829,1.4427,2410.8,2410.3,0.82956]
[1751396423029,1.4427,2410.8,2410.1,3.47488]
[1751396423225,0.82942,2410.8,2410.6,0.82946]
[1751396423530,2.42206942,2410.8,2410.7,0.82944]
[1751396423834,2.42206942,2410.9,2410.8,0.8294]
[1751396424028,2.42395385,2410.9,2410.6,0.82947]
[1751396424232,2.42395385,2410.8,2410.4,2.07385]
[1751396424426,2.42395385,2410.9,2410.8,0.8294]
[1751396424626,3.25333385,2410.9,2410.4,1.3929]
[1751396424935,2.42395385,2410.8,2410.5,19.04349]
[1751396425130,0.82946,2410.7,2410.5,19.04349]
[1751396425432,4.49741385,2410.9,2410.2,0.6724]
[1751396425728,4.49741385,2410.9,2410.2,0.8296]
[1751396425729,0.82958,2410.3,2410.2,0.8296]
[1751396425928,2.0736,2410.7,2410.1,59.773]
[1751396425929,0.82961,2410.2,2410.1,59.773]
[1751396426233,2.07371,2410.6,2410.1,60.60264]
[1751396426427,0.8296,2410.3,2410.1,60.60264]
[1751396426633,0.82961,2410.2,2410.1,59.773]
[1751396427428,0.82961,2410.2,2410.1,60.60264]
[1751396427628,0.82959,2410.3,2410.1,59.773]
[1751396427828,0.82959,2410.3,2410.1,60.60263]
[1751396428028,0.82947,2410.6,2410.4,0.82951]
[1751396428328,2.07347,2410.9,2410.5,0.8295]
[1751396428532,1.4244,2411.0,2410.4,0.82951]
[1751396428833,3.49777,2411.0,2410.3,1.0372]
[1751396429226,3.49777,2411.0,2410.5,0.8295]
[1751396429529,0.82949,2410.6,2410.4,0.82954]
[1751396429729,2.0732,2411.2,2410.8,0.8294]
[1751396429929,10.15663553,2411.6,2410.6,18.212]
[1751396429930,1.4411,2411.5,2410.6,18.212]
[1751396430130,2.07308,2411.3,2410.7,37.892]
[1751396430332,0.82939,2410.9,2410.8,0.8294]
[1751396430528,3.51427,2411.2,2410.7,1.4546]
[1751396430724,0.82938,2410.9,2410.8,0.8294]
[1751396430924,0.8294,2410.8,2410.7,1.4546]
[1751396431131,1.4411,2411.4,2410.4,1.23695084]
[1751396431330,9.46353553,2411.5,2410.4,2.69155084]
[1751396431331,0.8295,2410.5,2410.4,2.69155084]
[1751396431530,3.51441,2411.1,2410.4,1.4546]
[1751396431729,2.07319,2411.2,2410.4,2.69155084]
[1751396431930,3.51403,2411.5,2411.0,0.82932]
[1751396432128,0.82942,2410.8,2410.7,0.82943]
[1751396432328,0.82943,2410.8,2410.4,2.69155084]
[1751396432530,0.82944,2410.7,2410.6,0.82945]
[1751396432731,0.82944,2410.7,2410.6,2.14935]
[1751396432933,2.07328,2411.1,2410.6,2.14935]
[1751396433328,0.82947,2410.6,2410.5,56.64348]
[1751396433534,0.82945,2410.7,2410.6,0.82946]
[1751396433729,0.82947,2410.6,2410.5,56.64349]
[1751396433935,0.8294,2410.8,2410.7,0.82941]
[1751396434237,2.07326,2411.1,2410.5,55.814]
[1751396434430,1.86623,2411.0,2410.6,1.3199]
[1751396434627,1.86626,2411.0,2410.9,0.82937]
[1751396434830,1.0369,2411.0,2410.9,0.82937]
[1751396435232,1.0369,2411.0,2410.6,2.14934]
[1751396435428,0.82943,2410.8,2410.7,55.357]
[1751396435634,1.0369,2411.0,2410.9,0.82937]
[1751396436537,1.0369,2411.0,2410.6,1.3199]
[1751396436840,0.82947,2410.6,2410.5,17.937]
[1751396437228,0.8295,2410.5,2410.4,1.0371]
[1751396437634,0.82954,2410.4,2410.3,4.77096]
[1751396437831,0.82954,2410.4,2410.3,3.9414]
[1751396438036,0.82954,2410.4,2410.3,3.73377]
[1751396438241,0.82953,2410.5,2410.4,0.82953]
[1751396438446,2.07353,2410.8,2410.2,0.6946]
[1751396438447,0.82957,2410.3,2410.2,1.52419]
[1751396438741,2.07364,2410.7,2410.2,0.6946]
[1751396438939,1.0369,2411.0,2410.2,0.6946]
[1751396439243,1.0369,2411.0,2410.4,2.07385]
[1751396439440,1.0369,2411.0,2410.6,2.07368]
[1751396439743,0.8294,2410.9,2410.8,0.82939]
[1751396439945,1.0369,2411.0,2410.9,0.82937]
[1751396440240,2.073,2411.4,2411.1,0.82929]
[1751396440436,0.82929,2411.2,2411.1,0.82929]
[1751396440844,0.82922,2411.4,2411.3,0.82922]
[1751396441041,0.82923,2411.3,2411.1,0.82927]
[1751396441238,0.82925,2411.3,2411.1,5.17337]
[1751396441440,0.82926,2411.2,2411.1,4.3441]
[1751396441642,2.07274,2411.7,2411.3,0.82921]
[1751396441942,0.82904,2411.9,2411.7,0.82907]
[1751396442243,0.82902,2412.0,2411.8,0.82905]
[1751396442632,2.07214,2412.4,2411.8,0.82905]
[1751396442838,0.82908,2411.8,2411.4,19.0989]
[1751396443137,0.82902,2412.0,2411.8,0.82905]
[1751396443437,2.07226,2412.3,2411.4,1.4409]
[1751396443438,1.86571,2411.7,2411.4,1.4409]
[1751396443642,1.0366,2411.7,2411.5,55.28013]
[1751396443842,1.0366,2411.7,2411.1,2.9032]
[1751396444140,0.82926,2411.2,2411.1,2.9032]
[1751396444445,1.4562,2411.6,2411.1,0.82929]